fUST/lending_fUST_20250713
["ID","MTS","AMOUNT","RATE_DAILY","PERIOD"]
[371756316,1752418257754,-627.52,0.0001726,2]
[371756317,1752418257763,-638.59,0.0001726,2]
[371756318,1752418257773,-460.0,0.0001726,2]
[371756319,1752418257782,-460.0,0.0001726,2]
[371756320,1752418257792,-460.0,0.0001726,2]
[371756321,1752418257802,-460.0,0.0001726,2]
[371756322,1752418257811,-506.49,0.0001726,2]
[371756323,1752418257822,-567.94,0.0001726,2]
[371756324,1752418257832,-460.0,0.0001726,2]
[371756325,1752418257842,-1699.88,0.0001726,2]
[371756326,1752418257851,-460.0,0.0001726,2]
[371756327,1752418257861,-1986.66,0.0001726,2]
[371756328,1752418257870,-556.22,0.0001726,2]
[371756329,1752418257880,-460.0,0.0001726,2]
[371756330,1752418257890,-460.0,0.0001726,2]
[371756331,1752418257900,-460.0,0.0001726,2]
[371756332,1752418257909,-477.26,0.0001726,2]
[371756333,1752418257918,-460.0,0.0001726,2]
[371756334,1752418257927,-540.15,0.0001726,2]
[371756335,1752418257937,-460.0,0.0001726,2]
[371756336,1752418257946,-460.0,0.0001726,2]
[371756337,1752418257955,-920.23,0.0001726,2]
[371756338,1752418257966,-460.0,0.0001726,2]
[371756339,1752418257976,-511.11,0.0001726,2]
[371756340,1752418257985,-460.0,0.0001726,2]
[371756341,1752418257995,-460.0,0.0001726,2]
[371756342,1752418258004,-1426.91,0.0001726,2]
[371756343,1752418258014,-460.0,0.0001726,2]
[371756344,1752418258087,-201.49230578,0.0001726,2]
[371756345,1752418258097,-460.0,0.0001726,2]
[371756346,1752418258107,-517.62,0.0001726,2]
[371756347,1752418258117,-380.0,0.0001726,2]
[371756348,1752418258126,-1093.81,0.0001726,2]
[371756349,1752418258136,-460.0,0.0001726,2]
[371756350,1752418258145,-460.0,0.0001726,2]
[371756351,1752418258155,-460.0,0.0001726,2]
[371756352,1752418258165,-2419.85,0.0001726,2]
[371756353,1752418258174,-479.39,0.0001726,2]
[371756354,1752418258183,-463.15584125,0.0001726,2]
[371756355,1752418258192,-460.0,0.0001726,2]
[371756356,1752418258202,-559.54100838,0.0001726,2]
[371756357,1752418258212,-460.0,0.0001726,2]
[371756358,1752418258223,-460.0,0.0001726,2]
[371756359,1752418258233,-655.11,0.0001726,2]
[371756360,1752418258242,-460.0,0.0001726,2]
[371756361,1752418258252,-460.0,0.0001726,2]
[371756362,1752418258262,-460.0,0.0001726,2]
[371756363,1752418258272,-460.0,0.0001726,2]
[371756364,1752418258283,-460.0,0.0001726,2]
[371756365,1752418258295,-460.0,0.0001726,2]
[371756366,1752418258305,-460.0,0.0001726,2]
[371756367,1752418258315,-671.19,0.0001726,2]
[371756368,1752418258324,-460.0,0.0001726,2]
[371756369,1752418258334,-1365.06,0.0001726,2]
[371756370,1752418258344,-460.0,0.0001726,2]
[371756371,1752418258353,-460.0,0.0001726,2]
[371756372,1752418258363,-1289.08,0.0001726,2]
[371756373,1752418258372,-460.0,0.0001726,2]
[371756374,1752418258382,-460.0,0.0001726,2]
[371756375,1752418258392,-460.0,0.0001726,2]
[371756376,1752418258401,-164.907912,0.00017275,2]
[371756377,1752418258410,-1000.0,0.00017321,2]
[371756378,1752418258420,-263.97524189,0.00017321,2]
[371756379,1752418258430,-500.0,0.00017321,2]
[371756380,1752418258439,-1000.0,0.00017321,2]
[371756381,1752418258449,-1000.0,0.00017321,2]
[371756382,1752418258459,-1002.5197529,0.00017321,2]
[371756383,1752418258470,-500.0,0.00017321,2]
[371756384,1752418258480,-500.0,0.00017321,2]
[371756385,1752418258490,-1000.0,0.00017321,2]
[371756386,1752418258500,-1025.77011804,0.00017321,2]
[371756387,1752418258510,-1000.95725856,0.00017321,2]
[371756388,1752418258519,-1000.0,0.00017321,2]
[371756389,1752418258529,-151.0,0.00017321,2]
[371756390,1752418258538,-151.0,0.00017321,2]
[371756391,1752418258548,-190.641377,0.00017321,2]
[371756392,1752418258557,-260.018655,0.00017321,2]
[371756393,1752418258566,-260.018655,0.00017321,2]
[371756394,1752418258576,-164.907912,0.00017365,2]
[371756395,1752418258597,-164.907912,0.00017456,2]
[371756396,1752418258615,-2464.484007,0.00017533,2]
[371756397,1752418258636,-2464.484007,0.00017533,2]
[371756398,1752418258656,-239.03816,0.00017533,2]
[371756399,1752418258678,-239.03816,0.00017533,2]
[371756400,1752418258695,-560.77925,0.00017533,2]
[371756401,1752418258716,-560.77925,0.00017533,2]
[371756402,1752418258731,-233.109635,0.00017534,2]
[371756403,1752418258751,-233.109635,0.00017534,2]
[371756404,1752418258773,-460.0,0.00017534,2]
[371756405,1752418258792,-460.0,0.00017534,2]
[371756406,1752418258807,-463.39757877,0.00017534,2]
[371756407,1752418258828,-460.0,0.00017534,2]
[371756408,1752418258843,-460.0,0.00017534,2]
[371756409,1752418258858,-460.0,0.00017534,2]
[371756410,1752418258874,-598.81290879,0.00017534,2]
[371756411,1752418258889,-460.0,0.00017534,2]
[371756412,1752418258905,-460.0,0.00017534,2]
[371756413,1752418258920,-464.88166402,0.00017534,2]
[371756414,1752418258935,-460.0,0.00017534,2]
[371756415,1752418258951,-460.0,0.00017534,2]
[371756416,1752418258966,-474.78246088,0.00017534,2]
[371756417,1752418258982,-460.0,0.00017534,2]
[371756418,1752418258997,-460.0,0.00017534,2]
[371756419,1752418259012,-151.0,0.00017534,2]
[371756420,1752418259027,-460.0,0.00017534,2]
[371756421,1752418259042,-460.0,0.00017534,2]
[371756422,1752418259058,-460.0,0.00017534,2]
[371756423,1752418259073,-716.02,0.00017534,2]
[371756424,1752418259088,-593.04,0.00017534,2]
[371756425,1752418259104,-460.0,0.00017534,2]
[371756426,1752418259119,-460.0,0.00017534,2]
[371756427,1752418259135,-460.0,0.00017534,2]
[371756428,1752418259150,-460.0,0.00017534,2]
[371756429,1752418259166,-460.0,0.00017534,2]
[371756430,1752418259181,-460.0,0.00017534,2]
[371756431,1752418259197,-460.0,0.00017534,2]
[371756432,1752418259216,-460.0,0.00017534,2]
[371756433,1752418259232,-460.0,0.00017534,2]
[371756434,1752418259248,-460.0,0.00017534,2]
[371756435,1752418259265,-549.9373962,0.00017534,2]
[371756436,1752418259282,-509.0,0.00017534,2]
[371756437,1752418259297,-528.73,0.00017534,2]
[371756438,1752418259308,-460.0,0.00017534,2]
[371756439,1752418259317,-460.0,0.00017534,2]
[371756440,1752418259327,-460.0,0.00017534,2]
[371756441,1752418259337,-460.0,0.00017534,2]
[371756442,1752418259347,-460.0,0.00017534,2]
[371756443,1752418259356,-460.0,0.00017534,2]
[371756444,1752418259366,-460.0,0.00017534,2]
[371756445,1752418259526,-460.0,0.00017534,2]
[371756446,1752418259554,-460.0,0.00017534,2]
[371756447,1752418259565,-460.0,0.00017534,2]
[371756448,1752418259575,-460.0,0.00017534,2]
[371756449,1752418259585,-460.0,0.00017534,2]
[371756450,1752418259595,-460.0,0.00017534,2]
[371756451,1752418259605,-460.0,0.00017534,2]
[371756452,1752418259616,-460.0,0.00017534,2]
[371756453,1752418259625,-460.0,0.00017534,2]
[371756454,1752418259635,-151.0,0.00017534,2]
[371756455,1752418259644,-151.0,0.00017534,2]
[371756456,1752418259654,-460.0,0.00017534,2]
[371756457,1752418259663,-460.0,0.00017534,2]
[371756458,1752418259672,-460.0,0.00017534,2]
[371756459,1752418259682,-264.58194162,0.00017534,2]
[371756460,1752418259691,-460.0,0.00017534,2]
[371756461,1752418259701,-460.0,0.00017534,2]
[371756462,1752418259710,-460.0,0.00017534,2]
[371756463,1752418259723,-532.38,0.00017534,2]
[371756464,1752418259733,-460.0,0.00017534,2]
[371756465,1752418259743,-460.0,0.00017534,2]
[371756466,1752418259752,-662.85,0.00017534,2]
[371756467,1752418259762,-276.390018,0.00017534,2]
[371756468,1752418259772,-615.76,0.00017534,2]
[371756469,1752418259782,-276.390018,0.00017534,2]
[371756470,1752418259792,-460.0,0.00017534,2]
[371756471,1752418259801,-460.0,0.00017534,2]
[371756472,1752418259810,-583.2,0.00017534,2]
[371756473,1752418259819,-242.94672986,0.00017534,2]
[371756474,1752418259829,-460.0,0.00017534,2]
[371756475,1752418259838,-460.0,0.00017534,2]
[371756476,1752418259848,-460.0,0.00017534,2]
[371756477,1752418259857,-636.27,0.00017534,2]
[371756478,1752418259867,-460.0,0.00017534,2]
[371756479,1752418259877,-460.0,0.00017534,2]
[371756480,1752418259887,-460.0,0.00017534,2]
[371756481,1752418259896,-460.0,0.00017534,2]
[371756482,1752418259906,-460.0,0.00017534,2]
[371756483,1752418259915,-2748.22,0.00017534,2]
[371756484,1752418259924,-460.0,0.00017534,2]
[371756485,1752418259934,-460.0,0.00017534,2]
[371756486,1752418259943,-460.0,0.00017534,2]
[371756487,1752418259953,-460.0,0.00017534,2]
[371756488,1752418259962,-889.53,0.00017534,2]
[371756489,1752418259975,-460.0,0.00017534,2]
[371756490,1752418259985,-460.0,0.00017534,2]
[371756491,1752418259994,-508.34584187,0.00017534,2]
[371756492,1752418260004,-460.0,0.00017534,2]
[371756493,1752418260014,-460.0,0.00017534,2]
[371756494,1752418260023,-460.0,0.00017534,2]
[371756495,1752418260033,-788.96,0.00017534,2]
[371756496,1752418260043,-460.0,0.00017534,2]
[371756497,1752418260053,-700.91,0.00017534,2]
[371756498,1752418260063,-460.0,0.00017534,2]
[371756499,1752418260073,-460.0,0.00017534,2]
[371756500,1752418260082,-477.18,0.00017534,2]
[371756501,1752418260092,-460.0,0.00017534,2]
[371756502,1752418260102,-460.0,0.00017534,2]
[371756503,1752418260111,-460.0,0.00017534,2]
[371756504,1752418260121,-151.0,0.00017534,2]
[371756505,1752418260131,-153.28529994,0.00017534,2]
[371756506,1752418260140,-460.0,0.00017534,2]
[371756507,1752418260150,-460.0,0.00017534,2]
[371756508,1752418260159,-522.68,0.00017534,2]
[371756509,1752418260169,-456.86893784,0.00017534,2]
[371756510,1752418260178,-3739.79,0.00017534,2]
[371756511,1752418260188,-460.0,0.00017534,2]
[371756512,1752418260197,-1104.11,0.00017534,2]
[371756513,1752418260208,-460.0,0.00017534,2]
[371756514,1752418260222,-460.0,0.00017534,2]
[371756515,1752418260232,-460.0,0.00017534,2]
[371756516,1752418260242,-460.0,0.00017534,2]
[371756517,1752418260251,-460.0,0.00017534,2]
[371756518,1752418260262,-460.0,0.00017534,2]
[371756519,1752418260272,-460.0,0.00017534,2]
[371756520,1752418260282,-460.0,0.00017534,2]
[371756521,1752418260294,-460.0,0.00017534,2]
[371756522,1752418260305,-460.0,0.00017534,2]
[371756523,1752418260315,-460.0,0.00017534,2]
[371756524,1752418260325,-460.0,0.00017534,2]
[371756525,1752418260335,-627.52,0.00017534,2]
[371756526,1752418260344,-638.59,0.00017534,2]
[371756527,1752418260353,-460.0,0.00017534,2]
[371756528,1752418260363,-460.0,0.00017534,2]
[371756529,1752418260372,-460.0,0.00017534,2]
[371756530,1752418260381,-460.0,0.00017534,2]
[371756531,1752418260391,-506.49,0.00017534,2]
[371756532,1752418260402,-567.94,0.00017534,2]
[371756533,1752418260412,-1699.88,0.00017534,2]
[371756534,1752418260422,-460.0,0.00017534,2]
[371756535,1752418260432,-1986.66,0.00017534,2]
[371756536,1752418260441,-556.22,0.00017534,2]
[371756537,1752418260451,-462.55689679,0.00017534,2]
[371756538,1752418260461,-460.0,0.00017534,2]
[371756539,1752418260477,-460.0,0.00017534,2]
[371756540,1752418260486,-477.26,0.00017534,2]
[371756541,1752418260496,-460.0,0.00017534,2]
[371756542,1752418260506,-540.15,0.00017534,2]
[371756543,1752418260515,-460.0,0.00017534,2]
[371756544,1752418260524,-460.0,0.00017534,2]
[371756545,1752418260534,-920.23,0.00017534,2]
[371756546,1752418260543,-511.11,0.00017534,2]
[371756547,1752418260553,-460.0,0.00017534,2]
[371756548,1752418260563,-460.0,0.00017534,2]
[371756549,1752418260572,-460.0,0.00017534,2]
[371756550,1752418260582,-1426.91,0.00017534,2]
[371756551,1752418260592,-460.0,0.00017534,2]
[371756552,1752418260602,-460.0,0.00017534,2]
[371756553,1752418260612,-517.62,0.00017534,2]
[371756554,1752418260622,-1093.81,0.00017534,2]
[371756555,1752418260632,-460.0,0.00017534,2]
[371756556,1752418260643,-467.12762371,0.00017534,2]
[371756557,1752418260652,-2419.85,0.00017534,2]
[371756558,1752418260662,-479.39,0.00017534,2]
[371756559,1752418260672,-460.0,0.00017534,2]
[371756560,1752418260681,-460.0,0.00017534,2]
[371756561,1752418260691,-460.0,0.00017534,2]
[371756562,1752418260700,-655.11,0.00017534,2]
[371756563,1752418260710,-339.67,0.00017534,2]
[371756564,1752418260724,-460.0,0.00017534,2]
[371756565,1752418260734,-460.0,0.00017534,2]
[371756566,1752418260744,-460.0,0.00017534,2]
[371756567,1752418260754,-460.0,0.00017534,2]
[371756568,1752418260764,-671.19,0.00017534,2]
[371756569,1752418260774,-595.04,0.00017534,2]
[371756570,1752418260783,-1365.06,0.00017534,2]
[371756571,1752418260794,-460.0,0.00017534,2]
[371756572,1752418260804,-1289.08,0.00017534,2]
[371756573,1752418260813,-460.0,0.00017534,2]
[371756574,1752418260823,-460.0,0.00017534,2]
[371756575,1752418260832,-164.907912,0.00017546,2]
[371756576,1752418260843,-1500.0,0.00017568,2]
[371756577,1752418260853,-1001.58885187,0.00017568,2]
[371756578,1752418260863,-1240.24514543,0.00017568,2]
[371756579,1752418260872,-164.907912,0.00017637,2]
[371756580,1752418260881,-643.63847005,0.00017675,2]
[371756581,1752418260891,-1830.06,0.00017696,3]
[371756582,1752418260900,-915.02,0.00017696,3]
[371756583,1752418260909,-457.52,0.00017696,3]
[371756584,1752418260919,-226.430392,0.00017708,2]
[371756585,1752418260928,-226.430392,0.00017708,2]
[371756586,1752418260938,-164.907912,0.00017727,2]
[371756587,1752418260947,-500.0,0.00017805,2]
[371756588,1752418260957,-590.40244496,0.00017805,2]
[371756589,1752418260971,-502.3432928,0.00017805,2]
[371756590,1752418260980,-505.49074743,0.00017805,2]
[371756591,1752418260990,-151.0,0.00017808,2]
[371756592,1752418261000,-460.0,0.00017808,2]
[371756593,1752418261009,-460.0,0.00017808,2]
[371756594,1752418261018,-576.45626025,0.00017808,2]
[371756595,1752418261027,-460.0,0.00017808,2]
[371756596,1752418261037,-2464.484007,0.00017808,2]
[371756597,1752418261046,-2464.484007,0.00017808,2]
[371756598,1752418261055,-239.03816,0.00017808,2]
[371756599,1752418261065,-239.03816,0.00017808,2]
[371756600,1752418261075,-553.62589914,0.00017808,2]
[371756601,1752418261084,-460.0,0.00017808,2]
[371756602,1752418261093,-460.0,0.00017808,2]
[371756603,1752418261102,-560.77925,0.00017808,2]
[371756604,1752418261112,-460.0,0.00017808,2]
[371756605,1752418261121,-560.77925,0.00017808,2]
[371756606,1752418261130,-151.0,0.00017808,2]
[371756607,1752418261140,-151.0,0.00017808,2]
[371756608,1752418261149,-151.0,0.00017808,2]
[371756609,1752418261159,-460.0,0.00017808,2]
[371756610,1752418261170,-408.87,0.00017808,2]
[371756611,1752418261179,-460.0,0.00017808,2]
[371756612,1752418261189,-716.02,0.00017808,2]
[371756613,1752418261198,-460.0,0.00017808,2]
[371756614,1752418261208,-463.85406198,0.00017808,2]
[371756615,1752418261222,-460.0,0.00017808,2]
[371756616,1752418261232,-460.0,0.00017808,2]
[371756617,1752418261242,-460.0,0.00017808,2]
[371756618,1752418261252,-460.0,0.00017808,2]
[371756619,1752418261263,-460.0,0.00017808,2]
[371756620,1752418261272,-460.0,0.00017808,2]
[371756621,1752418261282,-528.73,0.00017808,2]
[371756622,1752418261293,-460.0,0.00017808,2]
[371756623,1752418261303,-460.0,0.00017808,2]
[371756624,1752418261313,-460.0,0.00017808,2]
[371756625,1752418261322,-460.0,0.00017808,2]
[371756626,1752418261331,-460.0,0.00017808,2]
[371756627,1752418261341,-460.0,0.00017808,2]
[371756628,1752418261351,-600.0,0.00017808,2]
[371756629,1752418261361,-460.0,0.00017808,2]
[371756630,1752418261371,-460.0,0.00017808,2]
[371756631,1752418261381,-460.0,0.00017808,2]
[371756632,1752418261391,-460.0,0.00017808,2]
[371756633,1752418261399,-460.0,0.00017808,2]
[371756634,1752418261408,-460.0,0.00017808,2]
[371756635,1752418261416,-460.0,0.00017808,2]
[371756636,1752418261425,-460.0,0.00017808,2]
[371756637,1752418261434,-460.0,0.00017808,2]
[371756638,1752418261444,-306.38,0.00017808,2]
[371756639,1752418261453,-532.38,0.00017808,2]
[371756640,1752418261462,-460.0,0.00017808,2]
[371756641,1752418261475,-662.85,0.00017808,2]
[371756642,1752418261484,-615.76,0.00017808,2]
[371756643,1752418261494,-460.0,0.00017808,2]
[371756644,1752418261504,-460.0,0.00017808,2]
[371756645,1752418261514,-583.2,0.00017808,2]
[371756646,1752418261524,-460.0,0.00017808,2]
[371756647,1752418261534,-460.0,0.00017808,2]
[371756648,1752418261543,-636.27,0.00017808,2]
[371756649,1752418261553,-253.04493862,0.00017808,2]
[371756650,1752418261563,-460.0,0.00017808,2]
[371756651,1752418261573,-460.0,0.00017808,2]
[371756652,1752418261583,-460.0,0.00017808,2]
[371756653,1752418261592,-2748.22,0.00017808,2]
[371756654,1752418261602,-460.0,0.00017808,2]
[371756655,1752418261612,-460.0,0.00017808,2]
[371756656,1752418261622,-460.0,0.00017808,2]
[371756657,1752418261631,-189.67,0.00017808,2]
[371756658,1752418261641,-889.53,0.00017808,2]
[371756659,1752418261650,-460.0,0.00017808,2]
[371756660,1752418261736,-460.0,0.00017808,2]
[371756661,1752418261763,-460.0,0.00017808,2]
[371756662,1752418261774,-460.0,0.00017808,2]
[371756663,1752418261785,-460.0,0.00017808,2]
[371756664,1752418261795,-788.96,0.00017808,2]
[371756665,1752418261804,-460.0,0.00017808,2]
[371756666,1752418261814,-700.91,0.00017808,2]
[371756667,1752418261824,-460.0,0.00017808,2]
[371756668,1752418261834,-460.0,0.00017808,2]
[371756669,1752418261844,-477.18,0.00017808,2]
[371756670,1752418261853,-322.03,0.00017808,2]
[371756671,1752418261863,-460.0,0.00017808,2]
[371756672,1752418261872,-460.0,0.00017808,2]
[371756673,1752418261882,-460.0,0.00017808,2]
[371756674,1752418261891,-460.0,0.00017808,2]
[371756675,1752418261900,-522.68,0.00017808,2]
[371756676,1752418261909,-3739.79,0.00017808,2]
[371756677,1752418261918,-460.0,0.00017808,2]
[371756678,1752418261928,-1104.11,0.00017808,2]
[371756679,1752418261937,-162.39,0.00017808,2]
[371756680,1752418261947,-460.0,0.00017808,2]
[371756681,1752418261957,-460.0,0.00017808,2]
[371756682,1752418261971,-460.0,0.00017808,2]
[371756683,1752418261980,-460.0,0.00017808,2]
[371756684,1752418261990,-587.99166495,0.00017808,2]
[371756685,1752418261999,-460.0,0.00017808,2]
[371756686,1752418262009,-460.0,0.00017808,2]
[371756687,1752418262018,-265.31216949,0.00017808,2]
[371756688,1752418262028,-460.0,0.00017808,2]
[371756689,1752418262037,-638.59,0.00017808,2]
[371756690,1752418262047,-627.52,0.00017808,2]
[371756691,1752418262056,-460.0,0.00017808,2]
[371756692,1752418262066,-460.0,0.00017808,2]
[371756693,1752418262075,-460.0,0.00017808,2]
[371756694,1752418262085,-460.0,0.00017808,2]
[371756695,1752418262094,-506.49,0.00017808,2]
[371756696,1752418262105,-567.94,0.00017808,2]
[371756697,1752418262114,-1699.88,0.00017808,2]
[371756698,1752418262124,-460.0,0.00017808,2]
[371756699,1752418262133,-1986.66,0.00017808,2]
[371756700,1752418262143,-556.22,0.00017808,2]
[371756701,1752418262153,-460.0,0.00017808,2]
[371756702,1752418262162,-460.0,0.00017808,2]
[371756703,1752418262171,-477.26,0.00017808,2]
[371756704,1752418262181,-460.0,0.00017808,2]
[371756705,1752418262190,-540.15,0.00017808,2]
[371756706,1752418262199,-460.0,0.00017808,2]
[371756707,1752418262209,-920.23,0.00017808,2]
[371756708,1752418262221,-511.11,0.00017808,2]
[371756709,1752418262231,-460.0,0.00017808,2]
[371756710,1752418262240,-460.0,0.00017808,2]
[371756711,1752418262250,-460.0,0.00017808,2]
[371756712,1752418262260,-1426.91,0.00017808,2]
[371756713,1752418262269,-460.0,0.00017808,2]
[371756714,1752418262278,-517.62,0.00017808,2]
[371756715,1752418262288,-1093.81,0.00017808,2]
[371756716,1752418262299,-460.0,0.00017808,2]
[371756717,1752418262310,-2419.85,0.00017808,2]
[371756718,1752418262319,-479.39,0.00017808,2]
[371756719,1752418262328,-460.0,0.00017808,2]
[371756720,1752418262337,-460.0,0.00017808,2]
[371756721,1752418262347,-460.0,0.00017808,2]
[371756722,1752418262356,-655.11,0.00017808,2]
[371756723,1752418262366,-460.0,0.00017808,2]
[371756724,1752418262376,-460.0,0.00017808,2]
[371756725,1752418262386,-460.0,0.00017808,2]
[371756726,1752418262396,-372.62124726,0.00017808,2]
[371756727,1752418262406,-671.19,0.00017808,2]
[371756728,1752418262415,-1365.06,0.00017808,2]
[371756729,1752418262425,-460.0,0.00017808,2]
[371756730,1752418262435,-1289.08,0.00017808,2]
[371756731,1752418262444,-460.0,0.00017808,2]
[371756732,1752418262453,-249.01175982,0.0001781,2]
[371756733,1752418262463,-500.0,0.0001781,2]
[371756734,1752418262475,-370.72957296,0.0001781,2]
[371756735,1752418262486,-500.0,0.0001781,2]
[371756736,1752418262495,-500.0,0.0001781,2]
[371756737,1752418262505,-500.0,0.0001781,2]
[371756738,1752418262515,-500.7273366,0.0001781,2]
[371756739,1752418262523,-500.0,0.0001781,2]
[371756740,1752418262532,-618.04136094,0.0001781,2]
[371756741,1752418262540,-500.0,0.0001781,2]
[371756742,1752418262550,-503.11993608,0.0001781,2]
[371756743,1752418262559,-500.0,0.0001781,2]
[371756744,1752418262569,-618.49287827,0.0001781,2]
[371756745,1752418262578,-167.7888416,0.0001781,2]
[371756746,1752418262588,-500.0,0.0001781,2]
[371756747,1752418262597,-161.37660368,0.0001781,2]
[371756748,1752418262607,-500.0,0.0001781,2]
[371756749,1752418262617,-500.0,0.0001781,2]
[371756750,1752418262626,-500.0,0.0001781,2]
[371756751,1752418262636,-500.0,0.0001781,2]
[371756752,1752418262646,-500.0,0.0001781,2]
[371756753,1752418262655,-500.0,0.00017817,2]
[371756754,1752418262666,-500.0,0.00017817,2]
[371756755,1752418262676,-500.0,0.00017817,2]
[371756756,1752418262685,-164.907912,0.00017818,2]
[371756757,1752418262695,-500.0,0.00017823,2]
[371756758,1752418262704,-500.0,0.00017823,2]
[371756759,1752418262717,-420.0,0.00017851,2]
[371756760,1752418262726,-1200.0,0.00017852,2]
[371756761,1752418262735,-233.109635,0.00017868,2]
[371756762,1752418262745,-233.109635,0.00017868,2]
[371756763,1752418262755,-1500.0,0.00017868,2]
[371756764,1752418262765,-315.32243225,0.00017868,2]
[371756765,1752418262775,-1500.0,0.00017868,2]
[371756766,1752418262784,-1500.0,0.00017868,2]
[371756767,1752418262794,-151.0,0.000179,2]
[371756768,1752418262804,-164.907912,0.00017908,2]
[371756769,1752418262814,-164.907912,0.00017999,2]
[371756770,1752418262824,-250.0,0.00018,3]
[371756771,1752418262834,-2754.83870565,0.00018016,2]
[371756772,1752418262843,-2464.484007,0.00018073,2]
[371756773,1752418262853,-2464.484007,0.00018073,2]
[371756774,1752418262862,-151.0,0.00018079,2]
[371756775,1752418262871,-151.0,0.00018079,2]
[371756776,1752418262881,-151.0,0.00018079,2]
[371756777,1752418262890,-151.89351,0.00018079,2]
[371756778,1752418262899,-151.72375,0.00018082,2]
[371756779,1752418262908,-460.0,0.00018082,2]
[371756780,1752418262917,-226.430392,0.00018082,2]
[371756781,1752418262926,-226.430392,0.00018082,2]
[371756782,1752418262936,-460.0,0.00018082,2]
[371756783,1752418262945,-570.35207169,0.00018082,2]
[371756784,1752418262955,-197.55499953,0.00018082,2]
[371756785,1752418262964,-460.0,0.00018082,2]
[371756786,1752418262975,-460.0,0.00018082,2]
[371756787,1752418262984,-460.0,0.00018082,2]
[371756788,1752418262994,-460.0,0.00018082,2]
[371756789,1752418263004,-716.02,0.00018082,2]
[371756790,1752418263014,-460.0,0.00018082,2]
[371756791,1752418263024,-460.0,0.00018082,2]
[371756792,1752418263035,-460.0,0.00018082,2]
[371756793,1752418263045,-460.0,0.00018082,2]
[371756794,1752418263054,-460.0,0.00018082,2]
[371756795,1752418263064,-460.0,0.00018082,2]
[371756796,1752418263074,-460.0,0.00018082,2]
[371756797,1752418263084,-528.73,0.00018082,2]
[371756798,1752418263094,-460.0,0.00018082,2]
[371756799,1752418263104,-460.0,0.00018082,2]
[371756800,1752418263114,-460.0,0.00018082,2]
[371756801,1752418263124,-460.0,0.00018082,2]
[371756802,1752418263134,-460.0,0.00018082,2]
[371756803,1752418263144,-309.04430456,0.00018082,2]
[371756804,1752418263154,-460.0,0.00018082,2]
[371756805,1752418263163,-546.04,0.00018082,2]
[371756806,1752418263174,-460.0,0.00018082,2]
[371756807,1752418263184,-468.588744,0.00018082,2]
[371756808,1752418263194,-460.0,0.00018082,2]
[371756809,1752418263204,-460.0,0.00018082,2]
[371756810,1752418263215,-460.0,0.00018082,2]
[371756811,1752418263226,-532.38,0.00018082,2]
[371756812,1752418263236,-503.15,0.00018082,2]
[371756813,1752418263246,-662.85,0.00018082,2]
[371756814,1752418263256,-615.76,0.00018082,2]
[371756815,1752418263267,-460.0,0.00018082,2]